Cogmind - Beta 15 @@@ ROGUE MODE // 2025.05.07 @ 18:38:12 Player: Cheeriohz Result: Destroyed by D-53 Grenadier with Mini Grenade Launcher Performance ------------- Evolutions (0) 0 Regions Visited (4) 800 Robots Destroyed (25) 125 Value Destroyed (393) 393 Prototype IDs (0) 0 Alien Tech Used (0) 0 Bonus (83) 83 TOTAL SCORE: 1401 Bonus ------- Follower Combat Kills 83 Cogmind --------- Core Integrity 0/250 Matter 300/300 Energy 263/265 System Corruption 3% Temperature Cool (0) Movement Rolling (120) Ox2 Location -9/Mines Parts ------- > --- POWER (1) -------- Improved Ion Engine > --- PROPULSION (2) --- Armored Wheel Armored Wheel > --- UTILITY (2) ------ High-capacity Storage Unit Seismic Detector > --- WEAPON (2) ------- Light Assault Rifle Bore Cannon > --- INVENTORY (20) --- Ion Engine Wheel Armored Wheel Armored Wheel Scrap Suit Cooling System Cooling System High-capacity Matter Pod (200) Structural Scanner Structural Scanner Experimental Sensor Array Improved Terrain Scanner Improved Targeting Computer Medium Armor Plating Shield Generator Tractor Beam Beam Cannon Assault Rifle Welding Torch Peak State ------------ > --- POWER ------------ Improved Ion Engine > --- PROPULSION ------- Armored Wheel Armored Wheel > --- UTILITY ---------- High-capacity Storage Unit Seismic Detector > --- WEAPON ----------- Light Assault Rifle Bore Cannon > --- INVENTORY -------- Ion Engine Wheel Armored Wheel Armored Wheel Scrap Suit Cooling System Cooling System High-capacity Matter Pod Structural Scanner Structural Scanner Experimental Sensor Array Improved Terrain Scanner Improved Targeting Computer Medium Armor Plating Shield Generator Tractor Beam Beam Cannon Assault Rifle Welding Torch [Rating: 18] Favorites ----------- Power Ion Engine Engine Ion Engine Propulsion Armored Wheel Leg Aluminum Leg Wheel Armored Wheel Utility Seismic Detector Device Seismic Detector Storage High-capacity Storage Unit Processor Signal Interpreter Weapon Light Assault Rifle Energy Cannon Beam Cannon Ballistic Gun Light Assault Rifle Ballistic Cannon Bore Cannon Launcher Grenade Launcher Special Weapon Welding Torch Build | -11 -10 -10 -10 -9 ------- Run | Yrd Mat Min Exi Min Slots Evolved . | . . . . . Power . | . . . . . Propulsion . | . . . . . Utility . | . . . . . Weapon . | . . . . . Parts Attached 21 | 3 14 1 . 3 Power 2 | . 1 . . 1 Engine 2 | . 1 . . 1 Core . | . . . . . Reactor . | . . . . . Propulsion 6 | 2 4 . . . Treads . | . . . . . Leg . | . . . . . Wheel 6 | 2 4 . . . Hover . | . . . . . Flight . | . . . . . Utility 4 | 1 3 . . . Device 1 | 1 . . . . Storage 2 | . 2 . . . Processor 1 | . 1 . . . Hackware . | . . . . . Protection . | . . . . . Artifact . | . . . . . Weapon 9 | . 6 1 . 2 Energy Gun . | . . . . . Energy Cannon 1 | . . 1 . . Ballistic Gun 4 | . 3 . . 1 Ballistic Cannon 1 | . . . . 1 Launcher 2 | . 2 . . . Special Weapon 1 | . 1 . . . Impact Weapon . | . . . . . Slashing Weapon . | . . . . . Piercing Weapon . | . . . . . Special Melee Weapon . | . . . . . Unidentified Prototypes . | . . . . . Parts Lost 4 | . 4 . . . Power 1 | . 1 . . . Propulsion 2 | . 2 . . . Utility . | . . . . . Weapon 1 | . 1 . . . Highest Loss Streak 4 | . 4 . . . To Critical Strikes . | . . . . . Average Backups 17 | 7 16 19 19 18 Power . | 1 . 1 1 1 Propulsion 3 | 5 3 3 3 3 Utility 7 | . 6 9 10 10 Weapon 4 | 1 4 4 4 3 Tool/Special . | . . . . . Unused Backups 33 | 4 10 1 . 18 Power 1 | . . . . 1 Propulsion 10 | 4 3 . . 3 Utility 15 | . 2 1 . 12 Weapon 7 | . 5 . . 2 Tool/Special . | . . . . . Average Slot Usage (%) 99 | . 99 100 100 100 Engine 13 | . 13 14 14 14 Wheel 28 | . 28 28 28 28 Device 13 | . 12 14 14 14 Storage 14 | . 14 14 14 14 Energy Cannon 4 | . . 10 14 4 Ballistic Gun 20 | . 25 14 14 18 Launcher 2 | . 2 3 . 1 Peak Build Rating 18 | 8 11 13 13 18 Average Rating 10 | 6 9 11 13 14 On Entrance 10 | 6 7 11 13 13 Naked Turns . | . . . . . Heaviest Build 58 | 12 50 50 50 58 Greatest Support 24 | 20 24 24 24 24 Greatest Overweight (x) 2 | 1 2 2 2 2 Average Overweight (x) 1 | . 1 2 2 2 Largest Inventory Capacity 20 | 8 20 20 20 20 Average Capacity 18 | 8 18 20 20 20 Most Carried 20 | 8 20 20 20 20 Average Carried 17 | 7 16 19 20 19 Final Capacity 20 | 8 20 20 20 20 Final Carried 20 | 7 19 20 20 20 Class Distribution -------------------- 100% | Mutant Dominant Class ---------------- Mutant | -10/Materials Mutant | -10/Mines Mutant | -10/Exiles Mutant | -9/Mines Resources | -11 -10 -10 -10 -9 ----------- Run | Yrd Mat Min Exi Min Matter Collected 1002 | 258 236 227 141 140 Remotely . | . . . . . Salvage Created 751 | 140 343 190 . 78 Parts 49 | 12 28 8 . 1 Haulers Intercepted 2 | . 2 . . . Recyclers Shooed 1 | . 1 . . . Parts Field Recycled . | . . . . . Retrieved Matter . | . . . . . Parts Self-Destructed . | . . . . . Prevented . | . . . . . Kills | -11 -10 -10 -10 -9 ------- Run | Yrd Mat Min Exi Min Combat Hostiles Destroyed 22 | . 11 . . 11 Guns 7 | . 7 . . . Cannons 1 | . . . . 1 AOE 14 | . 4 . . 10 Classes Destroyed 9 | 2 6 . . 1 Worker 2 | . 2 . . . Builder 1 | . 1 . . . Tunneler 4 | 3 . 1 . . Hauler 2 | . 2 . . . Recycler 3 | 1 . 2 . . Watcher 1 | . 1 . . . Swarmer 6 | . 6 . . . Grunt 6 | . 5 . . 1 Assembled 10 | . . . . 10 Best Kill Streak 10 | 2 9 2 . 10 Combat Bots Only 10 | . 5 . . 10 Max Kills in Single Turn 3 | 1 3 1 . 3 Gunslinging 1 | . 1 . . . Exploded 3 | . 3 . . 3 Melee . | . . . . . Uniques/NPCs Destroyed . | . . . . . Combat | -11 -10 -10 -10 -9 -------- Run | Yrd Mat Min Exi Min Hostile Shots Fired 71 | . 50 . . 21 Missed 18 | . 11 . . 7 Hits 53 | . 39 . . 14 Melee 3 | . . . . 3 Projectile 50 | . 39 . . 11 AOE 3 | . . . . 3 Critical Strikes 1 | . 1 . . . Damage Taken 880 | . 501 . . 379 Core 257 | . 110 . . 147 Absorbed by Shields . | . . . . . Core Remaining (%) 100 | 100 . . . . Volleys Fired 70 | 7 43 9 . 11 Largest 2 | 2 2 2 . 2 Hottest 80 | 40 40 80 . 80 Shots Fired 119 | 14 72 18 . 15 Gun 84 | 14 58 9 . 3 Cannon 13 | . . 9 . 4 Launcher 14 | . 6 . . 8 Special 8 | . 8 . . . Kinetic 84 | 14 58 9 . 3 Thermal 21 | . 8 9 . 4 Explosive 14 | . 6 . . 8 Electromagnetic . | . . . . . Robot Hit Streak 7 | 3 7 4 . 6 Robot Miss Streak 3 | 1 3 3 . 3 Penetration Max . | . . . . . Secondary Targets 2 | . 2 . . . Max Gunslinging Chain 1 | . 1 . . . Shots Hit Robots 64 | 8 36 11 . 9 Core Hits 56 | 6 26 5 . 19 Critical Kills . | . . . . . Critical Parts Destroyed . | . . . . . Critical Strikes . | . . . . . Melee Attacks . | . . . . . Impact . | . . . . . Slashing . | . . . . . Piercing . | . . . . . Sneak Attacks . | . . . . . Combat Hostiles . | . . . . . Follow-up Attacks . | . . . . . Damage Inflicted 1633 | 78 869 162 . 524 Guns 479 | 78 340 41 . 20 Cannons 157 | . . 121 . 36 Explosions 997 | . 529 . . 468 Melee . | . . . . . Ramming . | . . . . . Kinetic 479 | 78 340 41 . 20 Thermal 157 | . . 121 . 36 Explosive 997 | . 529 . . 468 Electromagnetic . | . . . . . Impact . | . . . . . Slashing . | . . . . . Piercing . | . . . . . Highest Corruption 3 | . 3 3 3 3 Average Corruption 2 | . 1 3 3 3 Corruption Purged . | . . . . . Corruption Blocked . | . . . . . Effects 24 | . 3 8 5 8 Message Errors 4 | . 1 1 1 1 Matter Fused 11 | . . 6 3 2 Heat Flow Errors 1 | . . . 1 . Energy Discharges 3 | . 1 . . 2 Data Loss (minor) 4 | . 1 1 . 2 Misfires 1 | . . . . 1 Overload Shots . | . . . . . Overflow Damage 38 | . 25 4 . 9 Projectiles 4 | . . 4 . . Explosions 34 | . 25 . . 9 Melee . | . . . . . Knockbacks . | . . . . . Impact . | . . . . . Kinetic . | . . . . . Secondary . | . . . . . Self-Inflicted Damage 156 | . 72 . . 84 Shots 7 | . 4 . . 3 Rammed . | . . . . . Targets Rammed . | . . . . . Kicked . | . . . . . Crushed . | . . . . . Highest Temperature 100 | . 15 60 84 100 Average Temperature 31 | . 7 30 44 51 Received Heat Transfer 168 | . 159 . . 9 Siege Activations . | . . . . . Martial Activations . | . . . . . Shielding Activations . | . . . . . Robots Disrupted . | . . . . . Combat Hostiles . | . . . . . Robots Corrupted . | . . . . . Combat Hostiles . | . . . . . Parts Fried . | . . . . . Impact Corruptions . | . . . . . Robots Melted . | . . . . . Combat Hostiles . | . . . . . Parts Melted . | . . . . . Heat Transferred 333 | . . 259 . 74 Parts Sabotaged . | . . . . . Parts Stolen . | . . . . . Parts Stripped . | . . . . . Power Chain Reactions . | . . . . . Alert | -11 -10 -10 -10 -9 ------- Run | Yrd Mat Min Exi Min Maximum Alert Level 1 | . 1 . . . Low Security (%) 95 | 100 92 100 . 100 Level 1 4 | . 7 . . . Level 2 . | . . . . . Level 3 . | . . . . . Level 4 . | . . . . . Level 5 . | . . . . . High Security . | . . . . . Max Security . | . . . . . Peak Influence 220 | 10 220 48 . 58 Initial 48 | . . 48 . . Average 52 | 2 91 5 . 15 Influence Increases 587 | 20 427 15 . 125 Destroy 0b10 Robot/C 300 | . 220 . . 80 Destroy 0b10 Robot/NC 65 | 20 30 15 . . Destroy Leader 46 | . 36 . . 10 Allied During Kill 14 | . . . . 14 Successful Hack 41 | . 41 . . . Disable Machine 45 | . 45 . . . Destroy Structure 46 | . 25 . . 21 Lose Combat Pursuer 30 | . 30 . . . Influence Decreases 587 | 20 302 140 . 125 Entered New Map 77 | . . 77 . . Time Decay 456 | 20 262 63 . 111 Lost Part 40 | . 40 . . . Lost Ally 14 | . . . . 14 Squads Dispatched . | . . . . . Investigation . | . . . . . Extermination . | . . . . . Reinforcement . | . . . . . Assault . | . . . . . Garrison . | . . . . . Intercept . | . . . . . Searches Triggered . | . . . . . Construction Impeded . | . . . . . Haulers Reinforced . | . . . . . Active Scanning Responses . | . . . . . Cargo Convoy Interrupts . | . . . . . Stealth | -11 -10 -10 -10 -9 --------- Run | Yrd Mat Min Exi Min Distress Signals 4 | . 4 . . . Communications Jammed . | . . . . . Distress Signals . | . . . . . Times Spotted 46 | . 25 . . 21 Peak Tracking Total 14 | . 8 . . 14 Tactical Retreats 2 | . 1 . . 1 Traps | -11 -10 -10 -10 -9 ------- Run | Yrd Mat Min Exi Min Traps Triggered 3 | . 3 . . . Indirectly . | . . . . . Trap Hack Attempts . | . . . . . Triggered . | . . . . . Disarmed . | . . . . . Reprogrammed . | . . . . . Reused . | . . . . . Traps Extracted . | . . . . . Installed . | . . . . . Triggered . | . . . . . Machines | -11 -10 -10 -10 -9 ---------- Run | Yrd Mat Min Exi Min Machines Disabled 4 | . 3 . . 1 Max in Single Turn 2 | . 2 . . . Machines Repaired . | . . . . . Machines Dismantled . | . . . . . Machines Sabotaged . | . . . . . Overloaded Fab Kills . | . . . . . Hacking | -11 -10 -10 -10 -9 --------- Run | Yrd Mat Min Exi Min Machines Accessed 10 | . 9 . 1 . Terminals 8 | . 8 . . . Fabricators . | . . . . . Repair Stations 1 | . 1 . . . Recycling Units . | . . . . . Scanalyzers . | . . . . . Garrison Access . | . . . . . Total Hacks 53 | . 30 . 23 . Successful 34 | . 11 . 23 . Failed 18 | . 18 . . . Catastrophic . | . . . . . Database Lockouts 1 | . 1 . . . Manual 22 | . 22 . . . Terminals 25 | . 25 . . . Fabricators . | . . . . . Repair Stations 5 | . 5 . . . Recycling Units . | . . . . . Scanalyzers . | . . . . . Garrison Access . | . . . . . Terminal Hacks 25 | . 2 . 23 . Record 23 | . . . 23 . Robot Analysis 1 | . 1 . . . Terminal Index 1 | . 1 . . . Fabricator Hacks . | . . . . . Repair Station Hacks 2 | . 2 . . . Scan Component 2 | . 2 . . . Recycling Unit Hacks . | . . . . . Scanalyzer . | . . . . . Garrison Access Hacks . | . . . . . Unauthorized Hacks 7 | . 7 . . . Terminals 6 | . 6 . . . Botnet 6 | . 6 . . . Fabricators . | . . . . . Repair Stations 1 | . 1 . . . Mechanics 1 | . 1 . . . Recycling Units . | . . . . . Scanalyzers . | . . . . . Garrison Access . | . . . . . Data Cores Recovered . | . . . . . Used . | . . . . . Hacking Detections 9 | . 9 . . . Full Trace Events . | . . . . . Feedback Events . | . . . . . Feedback Blocked . | . . . . . Robot Schematics Acquired . | . . . . . Robots Built . | . . . . . Authchips . | . . . . . Time . | . . . . . Total Robot Build Rating . | . . . . . Part Schematics Acquired . | . . . . . Parts Built . | . . . . . Authchips . | . . . . . Time . | . . . . . Total Part Build Rating . | . . . . . Parts Repaired . | . . . . . Time . | . . . . . Parts Recycled . | . . . . . Recycled Matter . | . . . . . Retrieved Matter . | . . . . . Retrieved Components . | . . . . . Parts Scanalyzed . | . . . . . Part Schematics Acquired . | . . . . . Parts Damaged . | . . . . . Bothacking | -11 -10 -10 -10 -9 ------------ Run | Yrd Mat Min Exi Min Used RIF Installer . | . . . . . Robots Hacked . | . . . . . Non-combat . | . . . . . Combat . | . . . . . Robot Hacks Applied . | . . . . . Relay Couplers Released . | . . . . . Fabnet Peak Effective % . | . . . . . Robots Rewired . | . . . . . Allies Hacked . | . . . . . Hacks Repelled . | . . . . . Allies | -11 -10 -10 -10 -9 -------- Run | Yrd Mat Min Exi Min Total Allies 3 | . . 3 . . Largest Group 3 | . . 3 3 3 Highest-Rated Group 40 | . . 40 40 40 Highest-Rated Ally 16 | . . 16 16 16 Total Orders . | . . . . . Ally Attacks 42 | . . . . 42 Total Damage 455 | . . . . 455 Kills 6 | . . . . 6 Allies Corrupted . | . . . . . Allies Melted . | . . . . . Intel | -11 -10 -10 -10 -9 ------- Run | Yrd Mat Min Exi Min Active Infowar (turns) 2012 | 24 947 518 184 339 Seismic 2012 | 24 947 518 184 339 Robot Analysis Total 1 | . 1 . . . Derelict Logs Recovered 3 | . . 2 . 1 Drone Launches . | . . . . . Drone Recoveries . | . . . . . Exploration | -11 -10 -10 -10 -9 ------------- Run | Yrd Mat Min Exi Min Turns Passed 2180 | 89 1050 518 184 339 Spaces Moved 1559 | 46 757 369 154 233 Core . | . . . . . Treads . | . . . . . Legs 10 | 10 . . . . Wheels 1549 | 36 757 369 154 233 Hover . | . . . . . Flight . | . . . . . Fastest Speed 80 | 80 80 120 120 120 Average Speed 111 | 89 104 120 120 120 Slowest Speed 120 | 120 120 120 120 120 Overloaded Moves . | . . . . . Propulsion Burnouts . | . . . . . Robots Hopped . | . . . . . Potential Cave-ins . | . . . . . Cave-ins Triggered . | . . . . . Exploration Rate (%) 59 | 3 94 86 51 61 Regions Visited 4 Branch Regions 3 Pre-discovered Areas 2 | . . 1 1 . Known Exits Taken 1 | . 1 . . . Unknown Exits Taken 3 | 1 . 1 1 . Scrap Searched 2 | . . 1 . 1 Spaces Dug 8 | . 8 . . . Terrain Destroyed 56 | . 31 . . 25 Melee . | . . . . . Projectile . | . . . . . AOE 56 | . 31 . . 25 Terrain Rammed . | . . . . . Walls Destroyed . | . . . . . Machines Disabled . | . . . . . Actions | -11 -10 -10 -10 -9 --------- Run | Yrd Mat Min Exi Min Total 1895 | 83 951 428 153 280 Wait 186 | 17 97 46 . 26 Move 1555 | 45 756 368 153 233 Hop . | . . . . . Pick Up 32 | 4 24 2 . 2 Fast Attach 5 | 3 1 . . 1 Attach 4 | . 4 . . . Detach 2 | 2 . . . . Swap 16 | . 12 1 . 3 Drop 25 | 5 14 2 . 4 Fire 70 | 7 43 9 . 11 Melee . | . . . . . Ram . | . . . . . Kick . | . . . . . Crush . | . . . . . Escape Stasis . | . . . . . Rewire . | . . . . . Trap . | . . . . . Miscellaneous . | . . . . . Route ------- -11/Scrapyard -10/Materials (discovered 4 exits: *Mat x3 / *Min) -10/Mines (discovered 3 exits: *Mat x2 / *Exi) -10/Exiles (discovered 2 exits: [*Min x2]) -9/Mines History --------- Turn | Location | Event 1 | -11/Scrapyard | Discovered new exit (range 3) 90 | -11/Scrapyard | Entered Materials 186 | -10/Materials | Central database locked down 226 | -10/Materials | Discovered new exit (range 11) 300 | -10/Materials | Build established: Mutant 387 | -10/Materials | Discovered new exit (range 14) 635 | -10/Materials | Lost 4 parts (1p2n1w) 734 | -10/Materials | Discovered new exit (range 10) 822 | -10/Materials | Discovered new exit (range 16) 1038 | -10/Materials | Identified exit to Materials 1136 | -10/Materials | Identified exit to Mines 1140 | -10/Materials | Entered Mines 1161 | -10/Mines | Discovered exit to Materials (range 7) 1297 | -10/Mines | Found a hidden stash of uninstalled traps 1341 | -10/Mines | Assisted by bots powering up and referring to "LRC-V3" 1414 | -10/Mines | Found a Scrap Suit stashed away for nefarious purposes 1417 | -10/Mines | Found Scrap Suit 1441 | -10/Mines | Found a damaged Exp. Sensor Array with a note attached 1444 | -10/Mines | Found Prototype Device 1491 | -10/Mines | Learned Materials emergency access door positions 1606 | -10/Mines | Discovered exit to Materials (range 13) 1614 | -10/Mines | Learned location of Zion (-7) 1647 | -10/Mines | Deemed a non-threat by the Exiles lab entrance 1647 | -10/Mines | Discovered new exit (range 5) 1658 | -10/Mines | Entered Exiles 1658 | -10/Exiles | Accompanied by 3 allies 1676 | -10/Exiles | Discovered new exit (range 15) 1691 | -10/Exiles | Met 8R-AWN 1708 | -10/Exiles | Met EX-HEX 1753 | -10/Exiles | Met EX-DEC 1830 | -10/Exiles | Discovered new exit (range 12) 1842 | -10/Exiles | Entered Mines 1842 | -9/Mines | Accompanied by 3 allies 1844 | -9/Mines | Met a Derelict bent on vengeance 1992 | -9/Mines | Joined a pair of Derelicts in attacking an 0b10 outpost 2046 | -9/Mines | Assembled infested the area 2051 | -9/Mines | Assisted by a Guerilla fighting off Assembled 2054 | -9/Mines | Learned Materials terminal intel 2063 | -9/Mines | Core integrity fell below 50% 2072 | -9/Mines | Core integrity fell below 20% 2105 | -9/Mines | Destroyed 10 combat bots 2107 | -9/Mines | Lost 3 allies 2181 | -9/Mines | Destroyed by D-53 Grenadier with Mini Grenade Launcher Last Messages --------------- 02140_ System corrupted: Component data lost. 02140_ K-01 Serf collects debris. 02146_ U-05 Engineer builds a Wall. 02150_ U-05 Engineer lays Concrete. 02153_ U-05 Engineer builds a Wall. 02161_ U-05 Engineer lays Concrete. 02162_ K-01 Serf collects debris. 02162_ U-05 Engineer lays Concrete. 02163_ The unstable cave ceiling collapses. 02163_ U-05 Engineer builds a Wall. 02164_ The unstable cave ceiling collapses. 02168_ U-05 Engineer lays Concrete. 02170_ U-05 Engineer builds a Wall. 02170_ Searching scrap... 02170_ Found Signal Interpreter. 02170_ Found 41 Matter. 02170_ K-01 Serf collects debris. 02175_ U-05 Engineer lays Concrete. 02179_ U-05 Engineer builds a Wall. 02180_ U-05 Engineer lays Concrete. Map ----- +----------------------------------------------------+ | ?????????????????????????????????????????????????? | | ?????????????????????????????????????????????????? | | ?????????????????????????????????????????????????? | | ?????????????????????????????????????????????????? | | ?????????????????????????????????????????????????? | | ???????????????????????????????????# ????????????? | | ????????????????????????????????### ??????????? | | ???????????????????????????????## ??????????? | | ???????????????????????????????# ??????????# | | ???????????????????????????????? ?????????## | | ????????????????????????????????? #?????????# | | ?????????????????????????????????? #?????????# | | ??????????????????????????????????# #??????????# | | ??????????????????????????????????# #??????????# | | ?????????????????????????####??????# ##?????????? | | ??????????????????????#### #?????## ###???????? | | ?????????????????#???## #?????# ##??????? | | ?????????????????# ??# # ####### ##?????? | | ?????????????????# ### #k # ##????? | | ??????????????## # !%g ##???? | | ??????????????# udd u% ###?? | | ??????????????# # ### ## ### | | ??????????????# ## # # # #### | | ?????????????????#%?# #### ##??## | | ????????????????? ??# ##??# ##????##### | | ?????????????? # @ ##??# #?????????## | | ???????????# ### #??????????# | | ???????????# #??####### #??????????# | | ???????????? #?????????## #??????????# | | ???????????? ####???????????## ??????????## | | ??????????? ?????????????????### ???????????# | | ???????????? ????????????????????## #??????????? | | ????????????????????????????????????# #??????????# | | ?????????????????????????????????????##?????????## | | ????????????????????????????????????????????????# | | ????????????????????????????????????????????????# | | ????????????????????????????????????????????????## | | ?????????????????????????????????????????????????# | | ?????????????????????????????????????????????????? | | ?????????????????????????????????????????????????? | | ?????????????????????????????????????????????????? | | ?????????????????????????????????????????????????? | | ?????????????????????????????????????????????????? | | ?????????????????????????????????????????????????? | | | | | | | | | | | | | +----------------------------------------------------+ Best States ------------- Heat Dissipation 25 Energy Generation 12 Energy Capacity 265 Matter Stores 300 Matter Capacity 300 Sight Range 16 Terrain Scan Density 10 Evasion (%) 44 Item Schematics ----------------- None Robot Schematics ------------------ None Fabricated ------------ Nothing Repaired ---------- Nothing Alien Tech Used ----------------- None Achievements -------------- None Challenges ------------ None Game ------ Seed ActiveMyomerNetwork Manual? 0 Play Time 00:30:40 Cumulative 204.3 hours Start 2025.05.07 @ 17:52:13 End 2025.05.07 @ 18:38:12 Sessions 1 Manual Loads 0 Difficulty Rogue Special Mode None Game No. 157 Rogue 157 Adventurer 0 Explorer 0 Win Type - Total 4 Types 2/0/1/1/0/0/0/0/0/0 Lore% 37 Gallery% 69 Achievement% 64 Wizard Run 0 Options --------- Layout 1 ASCII 0 Keyboard 1 Movement Numpad Keybinds 0 Fullscreen 1 Font 48/Smallcaps Map View 55x35 Zoom Use 1% Tactical HUD 1 Map Filters NONE Filters NONE Steam 1 RUN: a44ecb04-6be9-4331-8c3f-a05cbabe4271